[Event "Slovakia Chess Open 2024"]
[Site "Modra"]
[Date "2024.03.03"]
[Round "5.15"]
[White "Veres, Alex"]
[Black "Visvader, Kristof"]
[Result "0-1"]
[ECO "C60"]
[WhiteElo "1584"]
[BlackElo "1696"]
[Annotator "NA RC"]
[PlyCount "76"]
[EventDate "2024.02.29"]
[EventType "swiss"]
[EventCountry "SVK"]
[SourceTitle "playchess.com"]
[Source "ChessBase"]
[SourceQuality "1"]
[TimeControl "5400+30"]

1. e4 {[%emt 0:00:07]} e5 {[%emt 0:00:07]} 2. Nf3 {[%emt 0:00:09]} Nc6 {[%emt 0:00:04]} 3. Bb5 {[%emt 0:00:18]} Nge7 {[%emt 0:00:25]} 4. Nc3 {[%emt 0:00:56]} g6 {[%emt 0:00:22]} 5. d3 {[%emt 0:01:13]} Bg7 {[%emt 0:00:16]} 6. O-O {[%emt 0:00:53]} O-O {[%emt 0:00:49]} 7. Be3 {[%emt 0:02:30]} d6 {[%emt 0:01:09]} 8. Nd2 {[%emt 0:05:55]} f5 {[%emt 0:04:23]} 9. Bc4+ {[%emt 0:03:59]} Kh8 {[%emt 0:00:54]} 10. f4 {[%emt 0:23:04]} Bh6 {[%emt 0:11:11]} 11. Ne2 {[%emt 0:26:27]} fxe4 {[%emt 0:07:18]} 12. dxe4 {[%emt 0:06:35]} Bg4 {[%emt 0:02:20]} 13. g3 {[%emt 0:01:56]} d5 {[%emt 0:13:54]} 14. exd5 {[%emt 0:06:49]} Nxd5 {[%emt 0:00:33]} 15. Bxd5 {[%emt 0:02:37]} Qxd5 {[%emt 0:00:45]} 16. Nc3 {[%emt 0:01:40]} Qd7 {[%emt 0:06:32]} 17. Qe1 {[%emt 0:00:51]} exf4 {[%emt 0:13:40]} 18. Bxf4 {[%emt 0:02:06]} Qd4+ {[%emt 0:06:27]} 19. Qf2 {[%emt 0:04:13]} Bxf4 {[%emt 0:04:01]} 20. Qxd4+ {[%emt 0:00:24]} Nxd4 {[%emt 0:00:14]} 21. Rxf4 {[%emt 0:00:03]} Rxf4 {[%emt 0:01:26]} 22. gxf4 {[%emt 0:00:06]} Rf8 {[%emt 0:01:30]} 23. Rf1 {[%emt 0:00:17]} c6 {[%emt 0:01:42]} 24. Rf2 {[%emt 0:08:40]} Nxc2 {[%emt 0:07:46]} 25. Nb3 {[%emt 0:00:20]} Ne3 {[%emt 0:01:44]} 26. Na5 {[%emt 0:00:34]} Rf7 {[%emt 0:01:10]} 27. Ne4 {[%emt 0:00:44]} Rd7 {[%emt 0:02:53]} 28. Rd2 {[%emt 0:00:23]} Rxd2 {[%emt 0:01:36]} 29. Nxd2 {[%emt 0:00:09]} Bc8 {[%emt 0:01:44]} 30. Kf2 {[%emt 0:00:18]} Nd1+ {[%emt 0:00:35]} 31. Ke2 {[%emt 0:01:12]} Nxb2 {[%emt 0:00:23]} 32. Ne4 {[%emt 0:00:15]} Kg7 {[%emt 0:01:37]} 33. Nc3 {[%emt 0:00:24]} c5 {[%emt 0:01:00]} 34. Kd2 {[%emt 0:00:43]} b6 {[%emt 0:00:56]} 35. Kc2 {[%emt 0:00:17]} bxa5 {[%emt 0:00:07]} 36. Kxb2 {[%emt 0:00:09]} Kf6 {[%emt 0:00:20]} 37. Kc2 {[%emt 0:00:52]} Kf5 {[%emt 0:00:54]} 38. Ne2 {[%emt 0:00:03]} Ba6 {[%emt 0:00:09]} 0-1

[Event "Slovakia Chess Open 2024"]
[Site "Modra"]
[Date "2024.03.03"]
[Round "5.16"]
[White "Mruskovic, Ondrej"]
[Black "Fratric, Jakub"]
[Result "0-1"]
[ECO "B95"]
[WhiteElo "1510"]
[BlackElo "1750"]
[Annotator "NA RC"]
[PlyCount "54"]
[EventDate "2024.02.29"]
[EventType "swiss"]
[EventCountry "SVK"]
[SourceTitle "playchess.com"]
[Source "ChessBase"]
[SourceQuality "1"]
[TimeControl "5400+30"]

1. e4 {[%emt 0:00:03]} c5 {[%emt 0:00:14]} 2. Nf3 {[%emt 0:00:10]} e6 {[%emt 0:00:23]} 3. Nc3 {[%emt 0:00:10]} d6 {[%emt 0:00:21]} 4. d4 {[%emt 0:00:18]} cxd4 {[%emt 0:00:07]} 5. Nxd4 {[%emt 0:00:16]} Nf6 {[%emt 0:00:10]} 6. Bg5 {[%emt 0:01:06]} a6 {[%emt 0:02:04]} 7. Nf3 {[%emt 0:00:56]} Nbd7 {[%emt 0:02:17]} 8. Bc4 {[%emt 0:04:19]} Qc7 {[%emt 0:01:08]} 9. Be2 {[%emt 0:01:14]} b5 {[%emt 0:00:55]} 10. a3 {[%emt 0:01:11]} Bb7 {[%emt 0:00:29]} 11. Nd2 {[%emt 0:02:25]} Be7 {[%emt 0:01:32]} 12. O-O {[%emt 0:01:50]} h6 {[%emt 0:01:21]} 13. Bf4 {[%emt 0:01:00]} O-O {[%emt 0:01:54]} 14. Bf3 {[%emt 0:03:58]} Rac8 {[%emt 0:03:13]} 15. Nb3 {[%emt 0:02:01]} Ne5 {[%emt 0:01:08]} 16. Bxe5 {[%emt 0:01:17]} dxe5 {[%emt 0:00:09]} 17. Qe2 {[%emt 0:02:23]} Nd7 {[%emt 0:01:31]} 18. Rad1 {[%emt 0:02:00]} Nb6 {[%emt 0:00:29]} 19. Nd2 {[%emt 0:05:45]} Rfd8 {[%emt 0:02:52]} 20. g3 {[%emt 0:05:32]} Bg5 {[%emt 0:01:10]} 21. Qe1 {[%emt 0:04:06]} Rxd2 {[%emt 0:02:30]} 22. Rxd2 {[%emt 0:00:26]} Bxd2 {[%emt 0:00:49]} 23. Qxd2 {[%emt 0:00:09]} Nc4 {[%emt 0:00:18]} 24. Qc1 {[%emt 0:00:14]} Nxa3 {[%emt 0:01:19]} 25. Qa1 {[%emt 0:07:51]} Nxc2 {[%emt 0:00:38]} 26. Qc1 {[%emt 0:00:49]} Nd4 {[%emt 0:00:21]} 27. Bg2 {[%emt 0:01:07]} b4 {[%emt 0:00:25]} 0-1

[Event "Slovakia Chess Open 2024"]
[Site "Modra"]
[Date "2024.03.03"]
[Round "5.18"]
[White "Hanzel, Richard"]
[Black "Gonda, Jan"]
[Result "0-1"]
[ECO "D20"]
[WhiteElo "1531"]
[BlackElo "1657"]
[Annotator "NA RC"]
[PlyCount "60"]
[EventDate "2024.02.29"]
[EventType "swiss"]
[EventCountry "SVK"]
[SourceTitle "playchess.com"]
[Source "ChessBase"]
[SourceQuality "1"]
[TimeControl "5400+30"]

1. d4 {[%emt 0:00:05]} d5 {[%emt 0:00:06]} 2. c4 {[%emt 0:00:05]} dxc4 {[%emt 0:00:05]} 3. e3 {[%emt 0:00:05]} e6 {[%emt 0:00:07]} 4. Bxc4 {[%emt 0:00:06]} a6 {[%emt 0:00:08]} 5. a4 {[%emt 0:00:07]} b6 {[%emt 0:00:24]} 6. Nc3 {[%emt 0:00:33]} Bb7 {[%emt 0:00:07]} 7. Nf3 {[%emt 0:00:06]} Nf6 {[%emt 0:00:10]} 8. b3 {[%emt 0:00:23]} Be7 {[%emt 0:00:27]} 9. Bb2 {[%emt 0:00:18]} O-O {[%emt 0:00:07]} 10. O-O {[%emt 0:00:06]} Nbd7 {[%emt 0:00:38]} 11. Qe2 {[%emt 0:00:37]} c5 {[%emt 0:00:16]} 12. Rad1 {[%emt 0:03:50]} Qb8 {[%emt 0:04:58]} 13. h3 {[%emt 0:00:59]} Qa7 {[%emt 0:00:41]} 14. d5 {[%emt 0:12:21]} exd5 {[%emt 0:01:15]} 15. Nxd5 {[%emt 0:01:49]} Nxd5 {[%emt 0:00:22]} 16. Bxd5 {[%emt 0:00:06]} Bxd5 {[%emt 0:07:31]} 17. Rxd5 {[%emt 0:00:07]} Nf6 {[%emt 0:00:18]} 18. Rd2 {[%emt 0:01:44]} Rad8 {[%emt 0:03:37]} 19. Rfd1 {[%emt 0:03:55]} Rxd2 {[%emt 0:03:10]} 20. Rxd2 {[%emt 0:00:25]} Rd8 {[%emt 0:05:49]} 21. Ne5 {[%emt 0:12:07]} Rxd2 {[%emt 0:07:12]} 22. Qxd2 {[%emt 0:00:06]} Qc7 {[%emt 0:00:36]} 23. Qd3 {[%emt 0:01:30]} Qc8 {[%emt 0:04:46]} 24. Kf1 {[%emt 0:03:18]} Qe6 {[%emt 0:11:14]} 25. Kg1 {[%emt 0:09:22]} a5 {[%emt 0:07:02]} 26. f3 {[%emt 0:03:43]} Nd5 {[%emt 0:05:11]} 27. e4 {[%emt 0:06:03]} Nb4 {[%emt 0:01:40]} 28. Qc4 {[%emt 0:08:29]} Bf6 {[%emt 0:03:59]} 29. Qxe6 {[%emt 0:00:12]} fxe6 {[%emt 0:00:12]} 30. Kf2 {[%emt 0:01:24]} Bxe5 {[%emt 0:00:26]} 0-1

[Event "Slovakia Chess Open 2024"]
[Site "Modra"]
[Date "2024.03.04"]
[Round "6.1"]
[White "Banas, Kamil"]
[Black "Krivoborodov, Egor"]
[Result "1/2-1/2"]
[ECO "B22"]
[WhiteElo "2162"]
[BlackElo "2555"]
[Annotator "TA"]
[PlyCount "121"]
[EventDate "2024.02.29"]
[EventType "swiss"]
[EventCountry "SVK"]
[SourceTitle "playchess.com"]
[Source "ChessBase"]
[SourceQuality "1"]
[TimeControl "5400+30"]

{[%evp 13,121,20,9,2,16,10,22,20,14,28,20,18,20,0,1,0,5,0,0,0,0,0,0,0,0,0,-3,-19,30,24,37,35,37,41,112,111,141,12,219,0,0,0,0,0,0,0,0,0,0,-64,-53,-114,-23,-34,-10,-10,-11,-10,0,0,0,0,0,0,0,0,0,0,0,0,0,0,0,0,0,0,0,-8,0,0,0,0,0,-8,0,0,0,0,0,0,0,0,0,0,0,0,0,0,0,0,0,0,0,0,0,0,0,0,0,0]} 1. e4 {[%emt 0:00:08]} c5 {[%emt 0:01:38]} 2. c3 {[%emt 0:00:07]} d5 {[%emt 0:00:06]} 3. exd5 {[%emt 0:00:10]} Qxd5 {[%emt 0:00:02]} 4. d4 {[%emt 0:00:17]} Nf6 {[%emt 0:00:12]} 5. Nf3 {[%emt 0:00:06]} e6 {[%emt 0:00:12]} 6. Be3 {[%emt 0:00:38]} cxd4 {[%emt 0:00:09]} 7. cxd4 {[%emt 0:00:02]} Bb4+ {[%emt 0:00:18]} 8. Nc3 {[%emt 0:00:07]} O-O {[%emt 0:00:07]} 9. Bd3 {[%emt 0:01:40]} b6 {[%emt 0:00:11]} 10. O-O {[%emt 0:00:12]} Bxc3 {[%emt 0:00:03]} 11. bxc3 {[%emt 0:00:03]} Ba6 {[%emt 0:00:05]} 12. Bxa6 {[%emt 0:00:20]} Nxa6 {[%emt 0:00:02]} 13. Qe2 {[%emt 0:00:13]} Nb8 {[%emt 0:00:06]} 14. c4 {[%emt 0:01:01]} Qe4 {[%emt 0:00:34]} 15. Qb2 {[%emt 0:00:09]} Nc6 {[%emt 0:09:15]} 16. h3 {[%emt 0:02:57]} Rac8 {[%emt 0:05:45]} 17. Rac1 {[%emt 0:01:02]} Rfd8 {[%emt 0:04:53]} 18. Rfd1 {[%emt 0:01:59]} h6 {[%emt 0:17:38]} 19. Qa3 {[%emt 0:10:39]} Rc7 {[%emt 0:13:13]} 20. Rc3 {[%emt 0:05:21]} e5 {[%emt 0:15:17]} (20... Qf5 $142) 21. d5 $11 {[%emt 0:02:30] Black must now prevent Nd2.} Na5 {[%emt 0:00:35]} 22. Nd2 {[%emt 0:03:54]} Qf5 {[%emt 0:00:43]} 23. Rdc1 {[%emt 0:01:43][%cal Oe3h6]} Rdc8 {[%emt 0:00:59] [#]} ({Better is} 23... Qg6 $14) 24. Bxh6 $1 $16 {[%emt 0:05:05][%mdl 512]} Kh7 {[%emt 0:18:17]} (24... gxh6 $2 25. Rf3 Qh5 26. Rxf6 $18) (24... Nh5 25. Be3) 25. Rf3 {[%emt 0:17:00]} ({White should play} 25. g4 $16 Qd7 26. Be3) 25... Qh5 {[%emt 0:08:07]} (25... Qg6 $11 {and Black is okay.} 26. Be3 Nxd5) 26. d6 $2 {[%emt 0:00:20]} (26. Be3 $18) 26... Qxh6 $11 {[%emt 0:02:12]} 27. Qd3+ $1 {[%emt 0:03:33]} (27. dxc7 $2 Qxd2 28. Rd3 Qf4 $17 (28... Qh6 29. Rdd1 $17)) 27... e4 $1 {[%emt 0:00:16]} 28. Rxf6 {[%emt 0:00:13]} exd3 {[%emt 0:03:01]} 29. Rxh6+ {[%emt 0:00:02]} Kxh6 {[%emt 0:00:41]} 30. dxc7 {[%emt 0:00:03]} Rxc7 {[%emt 0:00:00][%mdl 4096] Endgame. KRN-KRN} 31. a4 {[%emt 0:03:00]} (31. Rc3 $11) 31... Nb7 $15 {[%emt 0:00:05]} 32. Ra1 {[%emt 0:01:15]} (32. Nb3 $1 $15) 32... Re7 {[%emt 0:00:15]} ({Black should try} 32... a5 $17 {...Nc5 is the strong threat.} 33. f3 (33. Rb1 Rc6 $17) 33... Nc5) 33. Nb3 $1 $11 {[%emt 0:01:16]} Re4 {[%emt 0:01:14]} 34. Rd1 $1 {[%emt 0:01:38] The position is equal.} Rxc4 {[%emt 0:00:11]} 35. Rxd3 {[%emt 0:00:02]} Rxa4 {[%emt 0:00:56]} 36. Rd7 {[%emt 0:00:02][%csl LRb7,LRf7]} Nc5 {[%emt 0:00:23]} 37. Nxc5 {[%emt 0:00:06]} bxc5 {[%emt 0:00:31]} 38. Rxf7 {[%emt 0:00:08] KR-KR} a5 {[%emt 0:00:20]} 39. Rc7 {[%emt 0:00:14]} Rc4 {[%emt 0:00:43]} 40. Kf1 {[%emt 0:01:42]} a4 {[%emt 0:00:03]} 41. Ra7 {[%emt 0:00:54]} Rb4 {[%emt 0:01:03]} 42. Ke2 {[%emt 0:00:21]} c4 {[%emt 0:00:12]} 43. f4 {[%emt 0:06:25]} Rb2+ {[%emt 0:00:44]} 44. Kf3 {[%emt 0:03:06]} a3 {[%emt 0:00:19]} 45. Ra6+ {[%emt 0:00:27]} (45. Rxa3 $2 {perishes.} Rb3+ 46. Ke4 Rxa3 $19) 45... Kh7 {[%emt 0:00:07] aiming for ...a2.} 46. Ke4 {[%emt 0:03:28]} (46. Rxa3 Rb3+ 47. Rxb3 cxb3 $19) 46... a2 {[%emt 0:01:05]} 47. Kd4 {[%emt 0:00:03]} Rxg2 {[%emt 0:00:38]} 48. Kxc4 {[%emt 0:00:07]} g6 {[%emt 0:00:26]} 49. Kd4 {[%emt 0:02:18]} Kg7 {[%emt 0:00:30]} 50. Ke4 {[%emt 0:00:04]} Re2+ {[%emt 0:00:28]} 51. Kf3 {[%emt 0:00:14]} Rb2 {[%emt 0:00:01]} 52. Kg4 {[%emt 0:00:56]} Rg2+ {[%emt 0:00:23]} 53. Kf3 {[%emt 0:00:04]} Rc2 {[%emt 0:00:27]} 54. Kg4 {[%emt 0:00:04]} Rf2 {[%emt 0:00:40]} 55. h4 {[%emt 0:00:11]} Rg2+ {[%emt 0:01:04]} 56. Kf3 {[%emt 0:00:05]} Rd2 {[%emt 0:00:05]} 57. Kg4 {[%emt 0:00:04]} Kf7 {[%emt 0:00:05]} 58. h5 {[%emt 0:01:35]} gxh5+ {[%emt 0:00:22]} 59. Kxh5 {[%emt 0:00:08]} Rg2 {[%emt 0:00:34]} 60. Kh4 {[%emt 0:00:48]} Ke7 {[%emt 0:00:08]} 61. Kh3 {[%emt 0:00:06] Weighted Error Value: White=0.14 (very precise) /Black=0.13 (very precise) .  Loses game:     	---       	Black=1      Missed win:     	White=1     	---        Mistake:       	White=3     	Black=3      OK:         	White=28    	Black=20     Best:        	White=3     	Black=1      Strong:       	White=3     	Black=1      Brilliant:      	White=1     	---} 1/2-1/2

[Event "Slovakia Chess Open 2024"]
[Site "Modra"]
[Date "2024.03.04"]
[Round "6.2"]
[White "Stevik, Patrik"]
[Black "Melih, Mario"]
[Result "1-0"]
[ECO "E06"]
[WhiteElo "2167"]
[BlackElo "1930"]
[Annotator "RC"]
[PlyCount "73"]
[EventDate "2024.02.29"]
[EventType "swiss"]
[EventCountry "SVK"]
[SourceTitle "playchess.com"]
[Source "ChessBase"]
[SourceQuality "1"]
[TimeControl "5400+30"]

1. Nf3 {[%emt 0:00:01]} Nf6 {[%emt 0:00:08]} 2. g3 {[%emt 0:00:30]} d5 {[%emt 0:00:13]} 3. Bg2 {[%emt 0:00:02]} e6 {[%emt 0:00:48]} 4. O-O {[%emt 0:00:00]} Be7 {[%emt 0:00:04]} 5. d4 {[%emt 0:00:10]} O-O {[%emt 0:00:07]} 6. c4 {[%emt 0:00:37]} c6 {[%emt 0:00:48]} 7. Qc2 {[%emt 0:02:06]} b6 {[%emt 0:01:34]} 8. Bf4 {[%emt 0:02:06]} Bb7 {[%emt 0:00:54]} 9. Rd1 {[%emt 0:01:46]} Nbd7 {[%emt 0:01:12]} 10. a4 {[%emt 0:02:02]} Rc8 {[%emt 0:05:19]} 11. a5 {[%emt 0:03:20]} c5 {[%emt 0:02:32]} 12. a6 {[%emt 0:05:45]} Ba8 {[%emt 0:00:20]} 13. dxc5 {[%emt 0:00:26]} Bxc5 {[%emt 0:01:34]} 14. Nc3 {[%emt 0:00:54]} Qe7 {[%emt 0:05:05]} 15. cxd5 {[%emt 0:19:05]} Nxd5 {[%emt 0:12:25]} 16. Bg5 {[%emt 0:02:09]} f6 {[%emt 0:12:43]} 17. Bd2 {[%emt 0:00:45]} Rfd8 {[%emt 0:08:00]} 18. Qb3 {[%emt 0:03:49]} Nxc3 {[%emt 0:02:29]} 19. Bxc3 {[%emt 0:00:19]} Kh8 {[%emt 0:01:03]} 20. e3 {[%emt 0:02:42]} Nf8 {[%emt 0:09:10]} 21. Qa4 {[%emt 0:02:31]} e5 {[%emt 0:07:13]} 22. Nh4 {[%emt 0:10:16]} Bxg2 {[%emt 0:02:31]} 23. Kxg2 {[%emt 0:00:01]} Qe8 {[%emt 0:10:28]} 24. Qe4 {[%emt 0:04:09]} Rxd1 {[%emt 0:02:40]} 25. Rxd1 {[%emt 0:00:03]} Qc6 {[%emt 0:02:35]} 26. Qxc6 {[%emt 0:00:39]} Rxc6 {[%emt 0:00:05]} 27. Rd8 {[%emt 0:00:27]} Kg8 {[%emt 0:01:41]} 28. Rb8 {[%emt 0:00:45]} Rc7 {[%emt 0:08:02]} 29. f4 {[%emt 0:02:10]} exf4 {[%emt 0:02:21]} 30. exf4 {[%emt 0:00:31]} Kf7 {[%emt 0:00:43]} 31. Nf5 {[%emt 0:01:44]} Rd7 {[%emt 0:00:41]} 32. b4 {[%emt 0:06:30]} Be7 {[%emt 0:00:31]} 33. Be1 {[%emt 0:03:41]} Ne6 {[%emt 0:00:30]} 34. Bf2 {[%emt 0:02:39]} g6 {[%emt 0:00:30]} 35. Rb7 {[%emt 0:01:43]} Ke8 {[%emt 0:00:27]} 36. Nxe7 {[%emt 0:00:24]} Kxe7 {[%emt 0:00:33]} 37. Bxb6 {[%emt 0:00:10]} 1-0

[Event "Slovakia Chess Open 2024"]
[Site "Modra"]
[Date "2024.03.04"]
[Round "6.3"]
[White "Bochnicka, Vladimir"]
[Black "Shirinyan, Daniel"]
[Result "1-0"]
[ECO "B81"]
[WhiteElo "2413"]
[BlackElo "2177"]
[Annotator "RC"]
[PlyCount "95"]
[EventDate "2024.02.29"]
[EventType "swiss"]
[EventCountry "SVK"]
[SourceTitle "playchess.com"]
[Source "ChessBase"]
[SourceQuality "1"]
[TimeControl "5400+30"]

1. e4 {[%emt 0:00:04]} c5 {[%emt 0:00:03]} 2. Nf3 {[%emt 0:00:05]} d6 {[%emt 0:00:05]} 3. d4 {[%emt 0:00:11]} cxd4 {[%emt 0:00:04]} 4. Nxd4 {[%emt 0:00:10]} Nf6 {[%emt 0:00:05]} 5. Nc3 {[%emt 0:00:06]} a6 {[%emt 0:00:08]} 6. h3 {[%emt 0:00:14]} e6 {[%emt 0:00:40]} 7. g4 {[%emt 0:00:31]} Nfd7 {[%emt 0:00:11]} 8. Be3 {[%emt 0:01:15]} Be7 {[%emt 0:00:42]} 9. Qd2 {[%emt 0:03:26]} b5 {[%emt 0:00:39]} 10. a3 {[%emt 0:00:23]} Bb7 {[%emt 0:00:32]} 11. Rg1 {[%emt 0:07:16]} Nc6 {[%emt 0:01:32]} 12. Nb3 {[%emt 0:08:27]} Rc8 {[%emt 0:04:25]} 13. g5 {[%emt 0:02:57]} Nce5 {[%emt 0:23:03]} 14. Be2 {[%emt 0:03:50]} O-O {[%emt 0:06:15]} 15. f4 {[%emt 0:16:36]} Nc4 {[%emt 0:00:28]} 16. Bxc4 {[%emt 0:00:05]} Rxc4 {[%emt 0:00:35]} 17. f5 {[%emt 0:01:38]} Ne5 {[%emt 0:03:28]} 18. O-O-O {[%emt 0:24:56]} Nf3 {[%emt 0:00:51]} 19. Qg2 {[%emt 0:01:39]} Nxg1 {[%emt 0:05:13]} 20. f6 {[%emt 0:07:44]} Bxf6 {[%emt 0:03:26]} 21. gxf6 {[%emt 0:00:36]} Qxf6 {[%emt 0:00:12]} 22. Rxg1 {[%emt 0:01:31]} Rfc8 {[%emt 0:00:39]} 23. e5 {[%emt 0:00:54]} Qxe5 {[%emt 0:00:53]} 24. Qf2 {[%emt 0:01:18]} Qf5 {[%emt 0:17:44]} 25. Qxf5 {[%emt 0:07:03]} exf5 {[%emt 0:00:01]} 26. Na5 {[%emt 0:00:09]} R4c7 {[%emt 0:01:49]} 27. Nxb7 {[%emt 0:00:05]} Rxb7 {[%emt 0:00:01]} 28. Bd4 {[%emt 0:00:09]} f6 {[%emt 0:03:04]} 29. Bxf6 {[%emt 0:01:12]} Kf8 {[%emt 0:02:23]} 30. Bg5 {[%emt 0:02:19]} Rc4 {[%emt 0:00:15]} 31. Rf1 {[%emt 0:02:41]} Rf7 {[%emt 0:04:42]} 32. Bf4 {[%emt 0:00:19]} Rd4 {[%emt 0:00:01]} 33. Ne2 {[%emt 0:01:10]} Rd5 {[%emt 0:00:08]} 34. Nc3 {[%emt 0:00:04]} Rd4 {[%emt 0:00:01]} 35. Ne2 {[%emt 0:00:19]} Rd5 {[%emt 0:00:03]} 36. c3 {[%emt 0:02:56]} Rd3 {[%emt 0:00:01]} 37. h4 {[%emt 0:01:19]} Rh3 {[%emt 0:00:53]} 38. Bxd6+ {[%emt 0:01:15]} Ke8 {[%emt 0:00:45]} 39. Rf4 {[%emt 0:01:00]} Rd7 {[%emt 0:01:13]} 40. Bc5 {[%emt 0:00:27]} Rh1+ {[%emt 0:00:02]} 41. Kc2 {[%emt 0:00:51]} Rh2 {[%emt 0:00:06]} 42. Bf2 {[%emt 0:00:14]} Re7 {[%emt 0:01:20]} 43. Kd3 {[%emt 0:01:21]} g6 {[%emt 0:00:40]} 44. Nd4 {[%emt 0:00:32]} Kd7 {[%emt 0:00:51]} 45. Nb3 {[%emt 0:00:44]} Kc6 {[%emt 0:00:36]} 46. Na5+ {[%emt 0:00:22]} Kc7 {[%emt 0:00:07]} 47. c4 {[%emt 0:00:48]} Re4 {[%emt 0:00:23]} 48. Bg3 {[%emt 0:00:20]} 1-0

[Event "Slovakia Chess Open 2024"]
[Site "Modra"]
[Date "2024.03.04"]
[Round "6.4"]
[White "Oruzinsky, Juraj"]
[Black "Mruskovic, Radoslav"]
[Result "1/2-1/2"]
[ECO "A41"]
[WhiteElo "2160"]
[BlackElo "1933"]
[Annotator "RC"]
[PlyCount "75"]
[EventDate "2024.02.29"]
[EventType "swiss"]
[EventCountry "SVK"]
[SourceTitle "playchess.com"]
[Source "ChessBase"]
[SourceQuality "1"]
[TimeControl "5400+30"]

1. e4 {[%emt 0:00:05]} d6 {[%emt 0:00:08]} 2. d4 {[%emt 0:00:06]} Nf6 {[%emt 0:00:06]} 3. Bd3 {[%emt 0:00:52]} c6 {[%emt 0:00:09]} 4. Nf3 {[%emt 0:00:33]} Bg4 {[%emt 0:00:42]} 5. h3 {[%emt 0:01:27]} Bh5 {[%emt 0:01:36]} 6. O-O {[%emt 0:00:47]} Qb6 {[%emt 0:00:20]} 7. c3 {[%emt 0:01:30]} Nbd7 {[%emt 0:00:43]} 8. Nbd2 {[%emt 0:03:51]} e5 {[%emt 0:00:34]} 9. Nc4 {[%emt 0:03:12]} Qc7 {[%emt 0:00:12]} 10. a4 {[%emt 0:03:08]} d5 {[%emt 0:05:38]} 11. exd5 {[%emt 0:08:16]} e4 {[%emt 0:01:09]} 12. d6 {[%emt 0:00:46]} Bxd6 {[%emt 0:03:34]} 13. Re1 {[%emt 0:00:20]} O-O-O {[%emt 0:04:46]} 14. Nxd6+ {[%emt 0:01:09]} Qxd6 {[%emt 0:00:10]} 15. Bxe4 {[%emt 0:00:30]} Rhe8 {[%emt 0:04:27]} 16. Bd3 {[%emt 0:10:50]} Bxf3 {[%emt 0:01:43]} 17. gxf3 {[%emt 0:04:37]} Rxe1+ {[%emt 0:01:27]} 18. Qxe1 {[%emt 0:00:10]} Re8 {[%emt 0:00:09]} 19. Qf1 {[%emt 0:02:50]} Qd5 {[%emt 0:02:27]} 20. f4 {[%emt 0:17:18]} Qf3 {[%emt 0:04:20]} 21. Be3 {[%emt 0:04:34]} Nd5 {[%emt 0:02:35]} 22. Bf5 {[%emt 0:06:29]} Nxe3 {[%emt 0:02:05]} 23. fxe3 {[%emt 0:00:10]} Qxe3+ {[%emt 0:02:03]} 24. Qf2 {[%emt 0:00:04]} g6 {[%emt 0:01:05]} 25. Qxe3 {[%emt 0:02:21]} Rxe3 {[%emt 0:01:35]} 26. Kf2 {[%emt 0:00:08]} Re7 {[%emt 0:00:38]} 27. Bxd7+ {[%emt 0:06:23]} Kxd7 {[%emt 0:00:09]} 28. Rd1 {[%emt 0:00:50]} b5 {[%emt 0:02:42]} 29. Ra1 {[%emt 0:13:19]} a6 {[%emt 0:03:17]} 30. axb5 {[%emt 0:01:25]} axb5 {[%emt 0:00:09]} 31. Kf3 {[%emt 0:00:15]} Kd6 {[%emt 0:00:43]} 32. b3 {[%emt 0:01:04]} Kd5 {[%emt 0:06:23]} 33. Ra8 {[%emt 0:01:03]} Rd7 {[%emt 0:05:55]} 34. Ra5 {[%emt 0:00:05]} Re7 {[%emt 0:01:22]} 35. Ra8 {[%emt 0:00:22]} Rd7 {[%emt 0:00:07]} 36. Rh8 {[%emt 0:03:29]} b4 {[%emt 0:11:09]} 37. cxb4 {[%emt 0:01:05]} Kxd4 {[%emt 0:02:15]} 38. Rc8 {[%emt 0:00:27]} 1/2-1/2

[Event "Slovakia Chess Open 2024"]
[Site "Modra"]
[Date "2024.03.04"]
[Round "6.5"]
[White "Novomeska, Karin"]
[Black "Smetana, Peter"]
[Result "1/2-1/2"]
[ECO "A57"]
[WhiteElo "1929"]
[BlackElo "1993"]
[Annotator "RC"]
[PlyCount "51"]
[EventDate "2024.02.29"]
[EventType "swiss"]
[EventCountry "SVK"]
[SourceTitle "playchess.com"]
[Source "ChessBase"]
[SourceQuality "1"]
[TimeControl "5400+30"]

1. d4 {[%emt 0:00:03]} Nf6 {[%emt 0:00:06]} 2. Nf3 {[%emt 0:00:07]} c5 {[%emt 0:00:23]} 3. d5 {[%emt 0:00:22]} g6 {[%emt 0:00:16]} 4. c4 {[%emt 0:00:32]} b5 {[%emt 0:00:39]} 5. Nfd2 {[%emt 0:14:00]} bxc4 {[%emt 0:08:54]} 6. e4 {[%emt 0:02:41]} d6 {[%emt 0:02:54]} 7. Nc3 {[%emt 0:08:16]} Bg7 {[%emt 0:01:25]} 8. Nxc4 {[%emt 0:03:05]} O-O {[%emt 0:01:54]} 9. Be2 {[%emt 0:02:52]} Nbd7 {[%emt 0:01:14]} 10. O-O {[%emt 0:01:27]} Nb6 {[%emt 0:10:25]} 11. Re1 {[%emt 0:06:43]} Nxc4 {[%emt 0:13:10]} 12. Bxc4 {[%emt 0:00:04]} Nd7 {[%emt 0:01:18]} 13. Qc2 {[%emt 0:10:43]} Rb8 {[%emt 0:07:04]} 14. b3 {[%emt 0:04:34]} Ne5 {[%emt 0:02:06]} 15. Be2 {[%emt 0:12:41]} f5 {[%emt 0:14:04]} 16. Bb2 {[%emt 0:04:14]} fxe4 {[%emt 0:01:47]} 17. Nxe4 {[%emt 0:03:55]} Bf5 {[%emt 0:05:14]} 18. f4 {[%emt 0:00:35]} Bxe4 {[%emt 0:16:10]} 19. Qxe4 {[%emt 0:00:08]} Rb4 {[%emt 0:00:33]} 20. Bc4 {[%emt 0:02:13]} Nf3+ {[%emt 0:01:00]} 21. Qxf3 {[%emt 0:00:34]} Bxb2 {[%emt 0:00:04]} 22. Rad1 {[%emt 0:00:59]} Bf6 {[%emt 0:03:00]} 23. g4 {[%emt 0:10:32]} Be5 {[%emt 0:00:50]} 24. Re4 {[%emt 0:02:43]} g5 {[%emt 0:01:25]} 25. f5 {[%emt 0:01:00]} Kg7 {[%emt 0:01:34]} 26. Kg2 {[%emt 0:02:23]} 1/2-1/2